Cogmind - Beta 14 @@@ ROGUE MODE // 2024.08.19 @ 20:09:10 Player: Bt-7274 Result: Destroyed by S-43 Plague with Heavy Machine Gun Performance ------------- Evolutions (9) 4500 Regions Visited (28) 5600 Robots Destroyed (33) 165 Value Destroyed (633) 633 Prototype IDs (32) 640 Alien Tech Used (0) 0 Bonus (3625) 3625 TOTAL SCORE: 15163 Bonus ------- Follower Combat Kills 144 Aligned with FarCom 300 Met Data Miner 300 Met Imprinter 300 Met Warlord at Base 500 MAIN.C Attacked Warlord 500 Met Warlord at Research 2000 Friendly Fire -419 Cogmind --------- Core Integrity 0/1600 Matter 292/300 Energy 100/100 System Corruption 1% Temperature Cool (0) Movement Core (50) Location -1/Command Parts ------- > --- POWER (3) -------- (None) > --- PROPULSION (6) --- (None) > --- UTILITY (14) ----- Advanced Visual Processing Unit Advanced Signal Interpreter Advanced Signal Interpreter 0b10 Decoder Chip [Skirmisher] Improved Hacking Suite System Shield > --- WEAPON (2) ------- (None) > --- INVENTORY (5) ---- Quantum Reactor Missile Launcher Advanced Datajack Remote Datajack Peak State ------------ > --- POWER ------------ Backup Power I Light Antimatter Reactor Micro Antimatter Reactor > --- PROPULSION ------- Field Propulsion Array Improved Diametric Drive Improved Diametric Drive Impulse Thruster Array > --- UTILITY ---------- Machine Analyzer Advanced Signal Interpreter Advanced Signal Interpreter 0b10 Decoder Chip [Skirmisher] Experimental Armor Integrity Analyzer Hacking Suite System Mapper System Shield Advanced System Shield Advanced Corruption Screen > --- WEAPON ----------- Vortex Lance > --- INVENTORY -------- Field Propulsion Array Makeshift ECM Suite Missile Launcher Remote Datajack [Rating: 132] Favorites ----------- Power Backup Power III Engine Backup Power III Power Core Light Fission Core Reactor Light Antimatter Reactor Propulsion Improved Flight Unit Leg Aluminum Leg Wheel Wheel Flight Unit Improved Flight Unit Utility Hacking Suite Device Advanced Cloaking Device Storage Small Storage Unit Processor Advanced Signal Interpreter Hackware Hacking Suite Protection Improved Light Armor Plating Weapon Vortex Lance Energy Gun Backup Laser III Ballistic Gun Light Assault Rifle Launcher Improved Grenade Launcher Special Weapon RU-N14's Throwing Claymores v3 Slashing Weapon Axe Piercing Weapon Vortex Lance Special Melee Weapon Datajack Build | -11 -10 -9 -9 -9 -8 -8 -7 -7 -7 -6 -6 -6 -6 -6 -5 -5 -5 -4 -4 -4 -4 -4 -4 -3 -3 -2 -1 -1 ------- Run | Yrd Mat Mat Min Exi Min Mat Fac Low Dat Pro Fac Low Low Zio Pro Fac Ext Fac Was Fac Upp Upp War Pro Res Res Acc Com Slots Evolved 18 | . . 2 . . . 2 2 . . . 2 . . . . 2 . 2 . . . . . . 2 2 2 . Power 2 | . . . . . . . 1 . . . . . . . . . . . . . . . . . . 1 . . Propulsion 4 | . . . . . . 2 . . . . . . . . . 1 . . . . . . . . 1 . . . Utility 12 | . . 2 . . . . 1 . . . 2 . . . . 1 . 2 . . . . . . 1 1 2 . Weapon . | . . . . . . . . . . . . . . . . . . . . . . . . . . . . . Parts Attached 133 | 9 6 4 3 . 3 11 2 . . 7 4 5 4 4 2 2 . 3 10 9 . 3 14 . 8 12 2 6 Power 26 | 1 1 . 1 . . 1 1 . . 1 1 . . . 1 . . 1 8 2 . 1 1 . 1 3 . 1 Engine 15 | 1 1 . 1 . . 1 1 . . 1 . . . . 1 . . 1 5 . . 1 . . . 1 . . Core 3 | . . . . . . . . . . . 1 . . . . . . . 1 1 . . . . . . . . Reactor 8 | . . . . . . . . . . . . . . . . . . . 2 1 . . 1 . 1 2 . 1 Propulsion 35 | 5 2 2 . . 1 3 . . . 3 1 . . . . 1 . 1 . 4 . . 2 . 2 7 . 1 Treads . | . . . . . . . . . . . . . . . . . . . . . . . . . . . . . Leg 2 | 2 . . . . . . . . . . . . . . . . . . . . . . . . . . . . Wheel 3 | 3 . . . . . . . . . . . . . . . . . . . . . . . . . . . . Hover . | . . . . . . . . . . . . . . . . . . . . . . . . . . . . . Flight 30 | . 2 2 . . 1 3 . . . 3 1 . . . . 1 . 1 . 4 . . 2 . 2 7 . 1 Utility 50 | 2 1 2 . . 2 3 1 . . 1 2 5 2 3 1 1 . 1 2 3 . 1 6 . 5 1 2 3 Device 24 | 1 1 . . . 1 . 1 . . . 2 5 . 2 1 1 . 1 1 1 . . 4 . . . 1 1 Storage 1 | 1 . . . . . . . . . . . . . . . . . . . . . . . . . . . . Processor 14 | . . 2 . . 1 1 . . . . . . 1 . . . . . 1 1 . 1 1 . 4 . 1 . Hackware 9 | . . . . . . . . . . 1 . . 1 1 . . . . . 1 . . 1 . 1 1 . 2 Protection 2 | . . . . . . 2 . . . . . . . . . . . . . . . . . . . . . . Artifact . | . . . . . . . . . . . . . . . . . . . . . . . . . . . . . Weapon 22 | 1 2 . 2 . . 4 . . . 2 . . 2 1 . . . . . . . 1 5 . . 1 . 1 Energy Gun 3 | . . . . . . 2 . . . 1 . . . . . . . . . . . . . . . . . . Energy Cannon . | . . . . . . . . . . . . . . . . . . . . . . . . . . . . . Ballistic Gun 5 | 1 2 . 1 . . . . . . . . . . . . . . . . . . 1 . . . . . . Ballistic Cannon . | . . . . . . . . . . . . . . . . . . . . . . . . . . . . . Launcher 3 | . . . 1 . . 1 . . . . . . . 1 . . . . . . . . . . . . . . Special Weapon 1 | . . . . . . . . . . . . . . . . . . . . . . . 1 . . . . . Impact Weapon . | . . . . . . . . . . . . . . . . . . . . . . . . . . . . . Slashing Weapon 2 | . . . . . . 1 . . . 1 . . . . . . . . . . . . . . . . . . Piercing Weapon 6 | . . . . . . . . . . . . . . . . . . . . . . . 4 . . 1 . 1 Special Melee Weapon 2 | . . . . . . . . . . . . . 2 . . . . . . . . . . . . . . . Unidentified Prototypes 16 | . . 1 . 1 . . . . . . . . . 1 . . . . 1 . . . 10 . 1 1 . . Parts Lost 49 | . . . 2 . . . . . . 8 . . 1 . . . 4 2 . . 2 4 . 2 3 4 13 4 Power 10 | . . . 1 . . . . . . 1 . . . . . . 1 . . . . 1 . 1 1 2 2 . Propulsion 18 | . . . . . . . . . . 4 . . . . . . 1 1 . . . 2 . 1 1 1 6 1 Utility 17 | . . . . . . . . . . 2 . . . . . . 2 1 . . 2 . . . 1 1 5 3 Weapon 4 | . . . 1 . . . . . . 1 . . 1 . . . . . . . . 1 . . . . . . Highest Loss Streak 13 | . . . 2 . . . . . . 6 . . 1 . . . 3 2 . . 1 4 . 2 2 2 13 4 To Critical Strikes . | . . . . . . . . . . . . . . . . . . . . . . . . . . . . . Average Slot Usage (%) 74 | . 95 77 84 88 88 100 89 92 92 81 70 83 79 81 80 82 78 52 60 69 68 53 67 71 67 76 72 38 Engine 5 | . 14 11 8 11 11 9 7 7 7 6 5 . . . . 5 5 5 9 5 . . 8 9 3 3 3 . Core 1 | . . . . . . . . . . . 1 6 6 6 6 5 4 . . 4 5 3 . . . . . . Reactor 1 | . . . . . . . . . . . . . . . . . . . . . 5 2 . . 3 4 3 . Flight 21 | . 9 22 22 22 22 36 30 30 30 26 26 26 26 26 26 29 28 21 21 21 21 15 19 19 17 19 20 3 Device 6 | . 14 11 11 11 11 2 4 7 7 4 3 17 13 13 13 11 8 5 4 5 5 5 5 5 3 . . 2 Processor 14 | . . 11 22 22 22 24 23 23 23 15 13 13 13 9 6 5 5 5 5 8 8 8 12 15 17 26 25 20 Hackware 10 | . . . . . . . . . . 6 6 6 8 18 20 17 16 10 10 14 11 10 14 15 14 17 15 8 Energy Gun 1 | . . . . . . 6 . . . 2 6 5 . . . . . . 3 3 5 2 1 . . . . . Ballistic Gun 2 | . 28 22 17 11 11 . . . . . . . . . . . . . . . . . . . . . . . Launcher 1 | . . . 3 11 11 9 7 7 7 4 . . . . . . . . . . . . . . . . . . Slashing Weapon 2 | . . . . . . 2 7 7 7 7 6 6 6 6 6 5 5 5 5 5 5 3 . . . . . . Piercing Weapon 1 | . . . . . . . . . . . . . . . . . . . . . . . 5 5 4 4 4 3 Peak Build Rating 132 | 6 7 13 13 13 16 29 28 28 28 32 40 47 44 57 48 51 49 43 57 78 78 75 113 97 124 132 106 67 Average Rating 59 | 4 6 7 12 13 13 26 27 28 28 27 29 41 40 44 45 49 46 34 45 68 74 60 87 95 110 118 95 54 On Entrance 41 | . 6 6 13 13 13 13 27 28 28 28 23 39 37 43 45 48 49 34 35 47 78 70 45 97 91 109 101 35 Naked Turns . | . . . . . . . . . . . . . . . . . . . . . . . . . . . . . Heaviest Build 32 | 12 13 6 8 8 8 17 18 18 18 19 22 19 18 17 22 22 22 17 22 32 32 32 15 9 19 25 14 12 Greatest Support 45 | 26 20 10 10 10 10 18 18 18 18 19 18 18 18 18 18 22 22 25 20 33 33 33 34 34 45 45 36 15 Greatest Overweight (x) 4 | 1 2 . . . . . . . . 1 1 1 . . 1 . . 4 1 . . . . . . 1 1 2 Average Overweight (x) . | . . . . . . . . . . . . . . . . . . . . . . . . . . . . . Largest Inventory Capacity 8 | 8 8 5 5 5 5 5 5 5 5 5 5 5 5 5 5 5 5 5 5 5 5 5 5 5 5 5 5 5 Average Capacity 5 | 7 7 5 5 5 5 5 5 5 5 5 5 5 5 5 5 5 5 5 5 5 5 5 5 5 5 5 5 5 Most Carried 8 | 8 8 5 5 5 5 5 5 5 5 5 4 5 5 5 5 5 5 5 5 5 5 5 5 5 5 5 5 5 Average Carried 4 | 4 7 5 4 5 5 4 4 5 5 4 3 4 4 4 5 4 5 4 4 4 5 4 5 5 4 4 5 3 Final Capacity 8 | 8 5 5 5 5 5 5 5 5 5 5 5 5 5 5 5 5 5 5 5 5 5 5 5 5 5 5 5 5 Final Carried 8 | 8 5 5 5 5 5 5 5 5 5 4 4 5 4 5 5 5 5 4 5 5 5 5 5 5 5 5 5 4 Class Distribution -------------------- 54% | Hacker-Sprinter 13% | Sprinter 8% | Scout 7% | Mutant 4% | Scavenger-Mutant 3% | Derelict-Sprinter Dominant Class ---------------- Mutant | -10/Materials Scavenger-Mutant | -9/Materials Mutant | -9/Mines Mutant | -9/Exiles Scout | -8/Mines Scout | -8/Materials Ninja | -7/Factory Sprinter | -7/Lower Caves Sprinter | -7/Data Miner Sprinter | -6/Proximity Caves Sprinter | -6/Factory Sprinter | -6/Lower Caves Derelict-Sprinter | -6/Lower Caves Hacker-Sprinter | -6/Zion Hacker-Sprinter | -5/Proximity Caves Hacker-Sprinter | -5/Factory Hacker-Sprinter | -5/Extension Hacker-Sprinter | -4/Factory Hacker-Sprinter | -4/Waste Hacker-Sprinter | -4/Factory Hacker-Sprinter | -4/Upper Caves Hacker-Mutant | -4/Upper Caves Hacker-Sprinter | -4/Warlord Hacker-Sprinter | -3/Proximity Caves Hacker-Sprinter | -3/Research Hacker-Sprinter | -2/Research Hacker-Sprinter | -1/Access Hacker-Ninja | -1/Command Resources | -11 -10 -9 -9 -9 -8 -8 -7 -7 -7 -6 -6 -6 -6 -6 -5 -5 -5 -4 -4 -4 -4 -4 -4 -3 -3 -2 -1 -1 ----------- Run | Yrd Mat Mat Min Exi Min Mat Fac Low Dat Pro Fac Low Low Zio Pro Fac Ext Fac Was Fac Upp Upp War Pro Res Res Acc Com Matter Collected 1633 | 304 104 38 52 . 40 97 . . . 190 . 96 40 30 20 30 . . 120 80 . 10 60 87 33 150 20 32 Remotely . | . . . . . . . . . . . . . . . . . . . . . . . . . . . . . Salvage Created 1446 | 135 139 51 74 . . 55 . . . 109 . 51 24 . . 106 . . 567 . 34 . . 10 . . 59 32 Parts 66 | 6 9 2 5 . . 10 . . . 12 . 1 . . . 3 . . 7 . 2 . . 1 . . 4 4 Haulers Intercepted 2 | . . 1 . . . . . . . . . . . . . 1 . . . . . . . . . . . . Recyclers Shooed . | . . . . . . . . . . . . . . . . . . . . . . . . . . . . . Parts Field Recycled . | . . . . . . . . . . . . . . . . . . . . . . . . . . . . . Retrieved Matter . | . . . . . . . . . . . . . . . . . . . . . . . . . . . . . Parts Self-Destructed 10 | . . . . . . . . . . 3 . . . . . . . . . . . . . 7 . . . . Prevented . | . . . . . . . . . . . . . . . . . . . . . . . . . . . . . Kills | -11 -10 -9 -9 -9 -8 -8 -7 -7 -7 -6 -6 -6 -6 -6 -5 -5 -5 -4 -4 -4 -4 -4 -4 -3 -3 -2 -1 -1 ------- Run | Yrd Mat Mat Min Exi Min Mat Fac Low Dat Pro Fac Low Low Zio Pro Fac Ext Fac Was Fac Upp Upp War Pro Res Res Acc Com Combat Hostiles Destroyed 23 | . 5 . 4 . . 4 . . . 9 . . . . . . . . . . . . . 1 . . . . Melee 2 | . . . . . . . . . . 1 . . . . . . . . . . . . . 1 . . . . Guns 11 | . 5 . 4 . . 1 . . . 1 . . . . . . . . . . . . . . . . . . AOE 10 | . . . . . . 3 . . . 7 . . . . . . . . . . . . . . . . . . Classes Destroyed 9 | 2 3 1 . . . 1 . . . . . 1 . . . . . . . . . . . 1 . . . . Tunneler 2 | 2 . . . . . . . . . . . . . . . . . . . . . . . . . . . . Hauler 2 | . . 1 . . . . . . . . . . . . . 1 . . . . . . . . . . . . Recycler 1 | 1 . . . . . . . . . . . . . . . . . . . . . . . . . . . . Operator 2 | . 1 . . . . . . . . . . . . . . . . . . . . . . . . . . 1 Drone 1 | . . . . . . . . . . . . . . . . . . . . . . . . 1 . . . . Watcher 3 | . . . . . . 1 . . . . . . . . . . . . . . . . . . . . 2 . Swarmer 20 | . 3 . 4 . . 4 . . . 9 . . . . . . . . . . . . . . . . . . Grunt 2 | . 2 . . . . . . . . . . . . . . . . . . . . . . . . . . . Samaritan 2 | . . . . . . . . . . . . 1 . . . . . . . . 1 . . . . . . . Best Kill Streak 5 | 3 2 1 4 . . 4 . . . 5 . . . . . 1 . . . . . . . 1 . . 2 1 Combat Bots Only 5 | . 2 . 4 . . 4 . . . 5 . . . . . . . . . . . . . 1 . . . . Max Kills in Single Turn 3 | 1 1 1 1 . . 3 . . . 3 . 1 . . . 1 . . . . 1 . . 1 . . 1 1 Gunslinging . | . . . . . . . . . . . . . . . . . . . . . . . . . . . . . Exploded 3 | . . . . . . 3 . . . 3 . . . . . . . . . . . . . . . . . . Melee 1 | . . . . . . . . . . 1 . . . . . . . . . . . . . 1 . . . . Uniques/NPCs Destroyed . | . . . . . . . . . . . . . . . . . . . . . . . . . . . . . Combat | -11 -10 -9 -9 -9 -8 -8 -7 -7 -7 -6 -6 -6 -6 -6 -5 -5 -5 -4 -4 -4 -4 -4 -4 -3 -3 -2 -1 -1 -------- Run | Yrd Mat Mat Min Exi Min Mat Fac Low Dat Pro Fac Low Low Zio Pro Fac Ext Fac Was Fac Upp Upp War Pro Res Res Acc Com Hostile Shots Fired 562 | . 29 6 26 . . 32 . 14 . 26 . . 34 . 4 2 12 8 . . 8 38 8 36 55 61 78 85 Missed 288 | . 9 1 10 . . 15 . 10 . 11 . . 19 . 3 2 8 7 . . 3 21 6 24 33 38 30 38 Damage Taken 5526 | . 193 67 130 . . 296 . 39 . 330 . . 173 . 18 . 104 84 . . 98 345 32 248 514 501 1200 1154 Core 2575 | . 58 12 15 . . 22 . . . 79 . . 86 . . . 12 10 . . 38 119 . 57 287 176 703 901 Absorbed by Shields . | . . . . . . . . . . . . . . . . . . . . . . . . . . . . . Regen/Repaired (Parts) 112 | . . . . . . . . . . . . . . . . . . . 55 20 . . 37 . . . . . Core Remaining (%) 88 | 100 76 . . . 93 96 . . . 88 . . . . 89 . 98 . . . . . . 80 77 87 . . Volleys Fired 78 | 14 27 4 13 . . 10 . . . 10 . . . . . . . . . . . . . . . . . . Largest 2 | 1 2 2 2 . . 2 . . . 1 . . . . . . . . . . . . . . . . . . Hottest 93 | 20 40 40 40 . . 93 . . . 63 . . . . . . . . . . . . . . . . . . Shots Fired 119 | 14 54 8 22 . . 11 . . . 10 . . . . . . . . . . . . . . . . . . Gun 109 | 14 54 8 22 . . 8 . . . 3 . . . . . . . . . . . . . . . . . . Cannon . | . . . . . . . . . . . . . . . . . . . . . . . . . . . . . Launcher 10 | . . . . . . 3 . . . 7 . . . . . . . . . . . . . . . . . . Special . | . . . . . . . . . . . . . . . . . . . . . . . . . . . . . Kinetic 98 | 14 54 8 22 . . . . . . . . . . . . . . . . . . . . . . . . . Thermal 11 | . . . . . . 8 . . . 3 . . . . . . . . . . . . . . . . . . Explosive 10 | . . . . . . 3 . . . 7 . . . . . . . . . . . . . . . . . . Electromagnetic . | . . . . . . . . . . . . . . . . . . . . . . . . . . . . . Robot Hit Streak 10 | 5 10 8 9 . . 3 . . . 3 . . . . . . . . . . . . . . . . . . Robot Miss Streak 7 | 1 7 . 2 . . 2 . . . 4 . . . . . . . . . . . . . . . . . . Penetration Max . | . . . . . . . . . . . . . . . . . . . . . . . . . . . . . Secondary Targets 1 | . . . 1 . . . . . . . . . . . . . . . . . . . . . . . . . Max Gunslinging Chain 1 | . . . 1 . . . . . . . . . . . . . . . . . . . . . . . . . Shots Hit Robots 110 | 11 31 7 12 . . 7 . . . 6 . 2 10 . . 3 . . 14 . 1 . . 1 . . 4 1 Core Hits 59 | 6 14 2 5 . . 5 . . . 15 . . 1 . . 1 . . 5 . 1 . . 1 . . 2 1 Critical Kills 1 | . . . 1 . . . . . . . . . . . . . . . . . . . . . . . . . Critical Parts Destroyed 2 | . 2 . . . . . . . . . . . . . . . . . . . . . . . . . . . Critical Strikes 3 | . 2 . 1 . . . . . . . . . . . . . . . . . . . . . . . . . Destroy 3 | . 2 . 1 . . . . . . . . . . . . . . . . . . . . . . . . . Melee Attacks 82 | . . . . . . 3 . . . 9 . 2 12 . . 4 10 3 14 1 3 . . 4 1 . 10 6 Impact . | . . . . . . . . . . . . . . . . . . . . . . . . . . . . . Slashing 53 | . . . . . . 3 . . . 9 . 2 4 . . 4 10 3 14 1 3 . . . . . . . Piercing . | . . . . . . . . . . . . . . . . . . . . . . . . . . . . . Entropic 21 | . . . . . . . . . . . . . . . . . . . . . . . . 4 1 . 10 6 Sneak Attacks 8 | . . . . . . . . . . 1 . 2 3 . . 1 . . . . 1 . . . . . . . Combat Hostiles 1 | . . . . . . . . . . 1 . . . . . . . . . . . . . . . . . . Follow-up Attacks . | . . . . . . . . . . . . . . . . . . . . . . . . . . . . . Damage Inflicted 3440 | 94 249 58 99 . . 335 . . . 734 . 158 178 . . 182 . . 710 . 60 . . 71 . . 428 84 Guns 653 | 94 249 58 99 . . 103 . . . 50 . . . . . . . . . . . . . . . . . . Cannons . | . . . . . . . . . . . . . . . . . . . . . . . . . . . . . Explosions 805 | . . . . . . 232 . . . 573 . . . . . . . . . . . . . . . . . . Melee 1979 | . . . . . . . . . . 108 . 158 178 . . 182 . . 710 . 60 . . 71 . . 428 84 Ramming 3 | . . . . . . . . . . 3 . . . . . . . . . . . . . . . . . . Kinetic 500 | 94 249 58 99 . . . . . . . . . . . . . . . . . . . . . . . . . Thermal 153 | . . . . . . 103 . . . 50 . . . . . . . . . . . . . . . . . . Explosive 805 | . . . . . . 232 . . . 573 . . . . . . . . . . . . . . . . . . Electromagnetic . | . . . . . . . . . . . . . . . . . . . . . . . . . . . . . Impact . | . . . . . . . . . . . . . . . . . . . . . . . . . . . . . Slashing 1396 | . . . . . . . . . . 108 . 158 178 . . 182 . . 710 . 60 . . . . . . . Piercing . | . . . . . . . . . . . . . . . . . . . . . . . . . . . . . Entropic 583 | . . . . . . . . . . . . . . . . . . . . . . . . 71 . . 428 84 Highest Corruption 2 | . . . . . . . . . . . . . . . 1 . . . . . . 2 2 . 2 . . 1 Average Corruption 1 | . . . . . . . . . . . . . . . 1 . . . . . . 1 2 . 1 . . 1 Corruption Purged . | . . . . . . . . . . . . . . . . . . . . . . . . . . . . . Corruption Blocked . | . . . . . . . . . . . . . . . . . . . . . . . . . . . . . Effects 1 | . . . . . . . . . . . . . . . . . . . . . . . . . 1 . . . Heat Flow Errors 1 | . . . . . . . . . . . . . . . . . . . . . . . . . 1 . . . Overload Shots . | . . . . . . . . . . . . . . . . . . . . . . . . . . . . . Overflow Damage 417 | . . . . . . . . . . 105 . 51 65 . . . . . 91 . . . . . . . 105 . Projectiles . | . . . . . . . . . . . . . . . . . . . . . . . . . . . . . Explosions 72 | . . . . . . . . . . 72 . . . . . . . . . . . . . . . . . . Melee 345 | . . . . . . . . . . 33 . 51 65 . . . . . 91 . . . . . . . 105 . Knockbacks . | . . . . . . . . . . . . . . . . . . . . . . . . . . . . . Impact . | . . . . . . . . . . . . . . . . . . . . . . . . . . . . . Kinetic . | . . . . . . . . . . . . . . . . . . . . . . . . . . . . . Secondary . | . . . . . . . . . . . . . . . . . . . . . . . . . . . . . Self-Inflicted Damage 220 | . . . . . . 92 . . . 128 . . . . . . . . . . . . . . . . . . Shots 5 | . . . . . . 2 . . . 3 . . . . . . . . . . . . . . . . . . Rammed 1 | . . . . . . . . . . 1 . . . . . . . . . . . . . . . . . . Targets Rammed 1 | . . . . . . . . . . 1 . . . . . . . . . . . . . . . . . . Kicked . | . . . . . . . . . . . . . . . . . . . . . . . . . . . . . Crushed . | . . . . . . . . . . . . . . . . . . . . . . . . . . . . . Highest Temperature 453 | . 16 3 . . . 120 . . . . . . 9 . . . . . . . 6 . . . 453 40 2 . Average Temperature 59 | . 7 2 . . . 36 . . . . . . 6 . . . . . . . 5 . . . 140 18 2 . Received Heat Transfer 501 | . 63 30 . . . 72 . 15 . . . . 63 . . . 21 . . . 33 18 . 30 75 18 . 63 Effects 1 | . . . . . . . . . . . . . . . . . . . . . . . . . 1 . . . Shutdowns 1 | . . . . . . . . . . . . . . . . . . . . . . . . . 1 . . . Siege Activations . | . . . . . . . . . . . . . . . . . . . . . . . . . . . . . Robots Corrupted . | . . . . . . . . . . . . . . . . . . . . . . . . . . . . . Combat Hostiles . | . . . . . . . . . . . . . . . . . . . . . . . . . . . . . Parts Fried . | . . . . . . . . . . . . . . . . . . . . . . . . . . . . . Impact Corruptions . | . . . . . . . . . . . . . . . . . . . . . . . . . . . . . Robots Melted . | . . . . . . . . . . . . . . . . . . . . . . . . . . . . . Combat Hostiles . | . . . . . . . . . . . . . . . . . . . . . . . . . . . . . Parts Melted 1 | . . . . . . . . . . 1 . . . . . . . . . . . . . . . . . . Heat Transferred 333 | . . . . . . 222 . . . 111 . . . . . . . . . . . . . . . . . . Parts Sabotaged . | . . . . . . . . . . . . . . . . . . . . . . . . . . . . . Parts Stolen . | . . . . . . . . . . . . . . . . . . . . . . . . . . . . . Parts Stripped . | . . . . . . . . . . . . . . . . . . . . . . . . . . . . . Power Chain Reactions . | . . . . . . . . . . . . . . . . . . . . . . . . . . . . . Alert | -11 -10 -9 -9 -9 -8 -8 -7 -7 -7 -6 -6 -6 -6 -6 -5 -5 -5 -4 -4 -4 -4 -4 -4 -3 -3 -2 -1 -1 ------- Run | Yrd Mat Mat Min Exi Min Mat Fac Low Dat Pro Fac Low Low Zio Pro Fac Ext Fac Was Fac Upp Upp War Pro Res Res Acc Com Peak Influence 591 | 15 215 187 142 . . 345 186 . . . 37 . . . . 22 86 89 24 50 . . . . 591 363 206 221 Initial 561 | . 9 90 72 . . . 156 . . . 37 . . . . . 10 27 24 16 . . . . 561 213 109 105 Average 179 | 3 120 107 126 . . 124 162 . . . 14 . . . . 9 19 43 24 23 . . . . 453 254 126 147 Maximum Alert Level 2 | . 1 . . . . 1 . . . . . . . . . . . . . . . . . . 2 1 1 1 Low Security (%) 64 | 100 75 100 100 . 100 62 100 . . . 100 . . . . 100 100 100 100 100 . . . . . 33 95 84 Level 1 23 | . 24 . . . . 37 . . . . . . . . . . . . . . . . . . 39 66 4 15 Level 2 11 | . . . . . . . . . . . . . . . . . . . . . . . . . 60 . . . Level 3 . | . . . . . . . . . . . . . . . . . . . . . . . . . . . . . Level 4 . | . . . . . . . . . . . . . . . . . . . . . . . . . . . . . Level 5 . | . . . . . . . . . . . . . . . . . . . . . . . . . . . . . High Security . | . . . . . . . . . . . . . . . . . . . . . . . . . . . . . Max Security . | . . . . . . . . . . . . . . . . . . . . . . . . . . . . . Squads Dispatched 10 | . 2 . . . . 1 . . . . . . . . . . . . . . . 1 . 1 3 . 1 1 Investigation 3 | . 1 . . . . . . . . . . . . . . . . . . . . . . . 2 . . . Extermination 1 | . . . . . . . . . . . . . . . . . . . . . . . . . 1 . . . Reinforcement 4 | . 1 . . . . 1 . . . . . . . . . . . . . . . . . . . . 1 1 Assault 2 | . . . . . . . . . . . . . . . . . . . . . . 1 . 1 . . . . Garrison . | . . . . . . . . . . . . . . . . . . . . . . . . . . . . . Intercept . | . . . . . . . . . . . . . . . . . . . . . . . . . . . . . Searches Triggered 2 | . . . . . . . . . . . . . . . . . . . . . . . . . 2 . . . Construction Impeded . | . . . . . . . . . . . . . . . . . . . . . . . . . . . . . Haulers Reinforced . | . . . . . . . . . . . . . . . . . . . . . . . . . . . . . Active Scanning Responses . | . . . . . . . . . . . . . . . . . . . . . . . . . . . . . Cargo Convoy Interrupts . | . . . . . . . . . . . . . . . . . . . . . . . . . . . . . Stealth | -11 -10 -9 -9 -9 -8 -8 -7 -7 -7 -6 -6 -6 -6 -6 -5 -5 -5 -4 -4 -4 -4 -4 -4 -3 -3 -2 -1 -1 --------- Run | Yrd Mat Mat Min Exi Min Mat Fac Low Dat Pro Fac Low Low Zio Pro Fac Ext Fac Was Fac Upp Upp War Pro Res Res Acc Com Distress Signals 13 | . 2 . . . . . . . . . . . . . . . 1 . . . . . . . 3 3 1 3 Communications Jammed 1 | . . . . . . . . . . . . . . . . 1 . . . . . . . . . . . . Distress Signals . | . . . . . . . . . . . . . . . . . . . . . . . . . . . . . Times Spotted 330 | . 13 7 4 . . 15 . 8 . 20 . . 10 . 2 1 8 9 . 1 4 7 14 24 25 17 15 126 Peak Tracking Total 170 | . 4 5 4 . . 9 . 14 . 3 . . 7 . 2 1 5 6 . 1 3 7 9 19 10 7 8 170 Tactical Retreats 44 | . 2 2 . . . 3 . . . 8 . . 4 . . . . 1 . . 2 1 2 3 7 6 2 1 Traps | -11 -10 -9 -9 -9 -8 -8 -7 -7 -7 -6 -6 -6 -6 -6 -5 -5 -5 -4 -4 -4 -4 -4 -4 -3 -3 -2 -1 -1 ------- Run | Yrd Mat Mat Min Exi Min Mat Fac Low Dat Pro Fac Low Low Zio Pro Fac Ext Fac Was Fac Upp Upp War Pro Res Res Acc Com Traps Triggered 4 | . 1 . . . . . . . . . . . . . . . 1 1 . . . . . . 1 . . . Indirectly . | . . . . . . . . . . . . . . . . . . . . . . . . . . . . . Trap Hack Attempts . | . . . . . . . . . . . . . . . . . . . . . . . . . . . . . Triggered . | . . . . . . . . . . . . . . . . . . . . . . . . . . . . . Disarmed . | . . . . . . . . . . . . . . . . . . . . . . . . . . . . . Reprogrammed . | . . . . . . . . . . . . . . . . . . . . . . . . . . . . . Reused . | . . . . . . . . . . . . . . . . . . . . . . . . . . . . . Traps Extracted . | . . . . . . . . . . . . . . . . . . . . . . . . . . . . . Installed 3 | . . . 3 . . . . . . . . . . . . . . . . . . . . . . . . . Triggered 7 | . . . . . . . . . . . . . . . . . . . . . . . 7 . . . . . Machines | -11 -10 -9 -9 -9 -8 -8 -7 -7 -7 -6 -6 -6 -6 -6 -5 -5 -5 -4 -4 -4 -4 -4 -4 -3 -3 -2 -1 -1 ---------- Run | Yrd Mat Mat Min Exi Min Mat Fac Low Dat Pro Fac Low Low Zio Pro Fac Ext Fac Was Fac Upp Upp War Pro Res Res Acc Com Machines Disabled . | . . . . . . . . . . . . . . . . . . . . . . . . . . . . . Max in Single Turn . | . . . . . . . . . . . . . . . . . . . . . . . . . . . . . Garrison Access 4 | . . . . . . . . . . . . . . . . . . . . 1 . . . . 1 1 1 . Machines Repaired . | . . . . . . . . . . . . . . . . . . . . . . . . . . . . . Machines Dismantled . | . . . . . . . . . . . . . . . . . . . . . . . . . . . . . Machines Sabotaged . | . . . . . . . . . . . . . . . . . . . . . . . . . . . . . Overloaded Fab Kills . | . . . . . . . . . . . . . . . . . . . . . . . . . . . . . Hacking | -11 -10 -9 -9 -9 -8 -8 -7 -7 -7 -6 -6 -6 -6 -6 -5 -5 -5 -4 -4 -4 -4 -4 -4 -3 -3 -2 -1 -1 --------- Run | Yrd Mat Mat Min Exi Min Mat Fac Low Dat Pro Fac Low Low Zio Pro Fac Ext Fac Was Fac Upp Upp War Pro Res Res Acc Com Machines Accessed 41 | . 3 1 . . . 2 1 . 4 . 2 . . . . . 4 1 . 3 . . 6 . 10 2 1 1 Terminals 20 | . 2 . . . . 2 1 . . . 1 . . . . . 4 . . 2 . . . . 7 . . 1 Fabricators 2 | . . . . . . . . . . . . . . . . . . 1 . . . . . . 1 . . . Repair Stations 1 | . . . . . . . . . . . . . . . . . . . . . . . . . . 1 . . Recycling Units 1 | . 1 . . . . . . . . . . . . . . . . . . . . . . . . . . . Scanalyzers 3 | . . 1 . . . . . . . . 1 . . . . . . . . . . . . . 1 . . . Garrison Access 4 | . . . . . . . . . . . . . . . . . . . . 1 . . . . 1 1 1 . Total Hacks 134 | . 5 2 . . . 2 1 . 27 . 10 . . . . . 15 6 . 10 . . 14 . 35 2 2 3 Successful 86 | . 2 2 . . . . . . 27 . 5 . . . . . 7 1 . 6 . . 14 . 19 2 1 . Failed 48 | . 3 . . . . 2 1 . . . 5 . . . . . 8 5 . 4 . . . . 16 . 1 3 Catastrophic 10 | . 1 . . . . 2 . . . . . . . . . . 1 . . 1 . . . . 4 . . 1 Database Lockouts . | . . . . . . . . . . . . . . . . . . . . . . . . . . . . . Manual 51 | . 3 . . 1 . 1 . . . . 7 . . 3 . . 11 . . 8 . . 1 . 13 . . 3 Terminals 61 | . 3 . . . . 2 1 . . . 9 . . . . . 15 . . 8 . . . . 20 . . 3 Fabricators 7 | . . . . . . . . . . . . . . . . . . 6 . . . . . . 1 . . . Repair Stations 1 | . . . . . . . . . . . . . . . . . . . . . . . . . . 1 . . Recycling Units 2 | . 2 . . . . . . . . . . . . . . . . . . . . . . . . . . . Scanalyzers 16 | . . 2 . . . . . . . . 1 . . . . . . . . . . . . . 13 . . . Garrison Access 6 | . . . . . . . . . . . . . . . . . . . . 2 . . . . 1 1 2 . Terminal Hacks 64 | . 1 . . . . . . . 27 . 5 . . . . . 7 . . 5 . . 14 . 5 . . . Record 20 | . . . . . . . . . 7 . . . . . . . . . . 1 . . 12 . . . . . Part Schematic 10 | . . . . . . . . . 10 . . . . . . . . . . . . . . . . . . . Robot Schematic 7 | . . . . . . . . . 7 . . . . . . . . . . . . . . . . . . . Prototype ID Bank 6 | . . . . . . . . . 3 . 1 . . . . . 2 . . . . . . . . . . . Open Door 2 | . . . . . . . . . . . . . . . . . . . . . . . 2 . . . . . Level Access Points 3 | . . . . . . . . . . . . . . . . . 1 . . 1 . . . . 1 . . . Branch Access Points 1 | . . . . . . . . . . . 1 . . . . . . . . . . . . . . . . . Terminal Index 5 | . 1 . . . . . . . . . 1 . . . . . 1 . . 1 . . . . 1 . . . Alert Level 2 | . . . . . . . . . . . 1 . . . . . 1 . . . . . . . . . . . Unreport Threat 4 | . . . . . . . . . . . 1 . . . . . 1 . . 2 . . . . . . . . Locate Traps 2 | . . . . . . . . . . . . . . . . . 1 . . . . . . . 1 . . . Recall Investigation 1 | . . . . . . . . . . . . . . . . . . . . . . . . . 1 . . . Recall Reinforcements 1 | . . . . . . . . . . . . . . . . . . . . . . . . . 1 . . . Fabricator Hacks 1 | . . . . . . . . . . . . . . . . . . 1 . . . . . . . . . . Load Schematic 1 | . . . . . . . . . . . . . . . . . . 1 . . . . . . . . . . Repair Station Hacks 1 | . . . . . . . . . . . . . . . . . . . . . . . . . . 1 . . Refit 1 | . . . . . . . . . . . . . . . . . . . . . . . . . . 1 . . Recycling Unit Hacks 1 | . 1 . . . . . . . . . . . . . . . . . . . . . . . . . . . Report Inventory 1 | . 1 . . . . . . . . . . . . . . . . . . . . . . . . . . . Scanalyzer 15 | . . 2 . . . . . . . . . . . . . . . . . . . . . . 13 . . . Insert Component 7 | . . 1 . . . . . . . . . . . . . . . . . . . . . . 6 . . . Analyze 8 | . . 1 . . . . . . . . . . . . . . . . . . . . . . 7 . . . Garrison Access Hacks 4 | . . . . . . . . . . . . . . . . . . . . 1 . . . . 1 1 1 . Seal Access 4 | . . . . . . . . . . . . . . . . . . . . 1 . . . . 1 1 1 . Unauthorized Hacks . | . . . . . . . . . . . . . . . . . . . . . . . . . . . . . Terminals . | . . . . . . . . . . . . . . . . . . . . . . . . . . . . . Fabricators . | . . . . . . . . . . . . . . . . . . . . . . . . . . . . . Repair Stations . | . . . . . . . . . . . . . . . . . . . . . . . . . . . . . Recycling Units . | . . . . . . . . . . . . . . . . . . . . . . . . . . . . . Scanalyzers . | . . . . . . . . . . . . . . . . . . . . . . . . . . . . . Garrison Access . | . . . . . . . . . . . . . . . . . . . . . . . . . . . . . Data Cores Recovered 1 | . 1 . . . . . . . . . . . . . . . . . . . . . . . . . . . Used . | . . . . . . . . . . . . . . . . . . . . . . . . . . . . . Hacking Detections 20 | . 2 . . . . 2 1 . . . 1 . . . . . 3 1 . 1 . . . . 7 . 1 1 Full Trace Events 2 | . . . . . . . . . . . . . . . . . . . . . . . . . 2 . . . Feedback Events . | . . . . . . . . . . . . . . . . . . . . . . . . . . . . . Feedback Blocked 1 | . . . . . . . . . . . . . . . . . . . . . . . . . 1 . . . Robot Schematics Acquired 7 | . . . . . . . . . 7 . . . . . . . . . . . . . . . . . . . Robots Built . | . . . . . . . . . . . . . . . . . . . . . . . . . . . . . Authchips . | . . . . . . . . . . . . . . . . . . . . . . . . . . . . . Time . | . . . . . . . . . . . . . . . . . . . . . . . . . . . . . Total Robot Build Rating . | . . . . . . . . . . . . . . . . . . . . . . . . . . . . . Part Schematics Acquired 17 | . . 1 . . . . . . 10 . . . . . . . . . . . . . . . 6 . . . Parts Built . | . . . . . . . . . . . . . . . . . . . . . . . . . . . . . Authchips . | . . . . . . . . . . . . . . . . . . . . . . . . . . . . . Time . | . . . . . . . . . . . . . . . . . . . . . . . . . . . . . Total Part Build Rating . | . . . . . . . . . . . . . . . . . . . . . . . . . . . . . Parts Repaired . | . . . . . . . . . . . . . . . . . . . . . . . . . . . . . Time . | . . . . . . . . . . . . . . . . . . . . . . . . . . . . . Parts Recycled . | . . . . . . . . . . . . . . . . . . . . . . . . . . . . . Recycled Matter . | . . . . . . . . . . . . . . . . . . . . . . . . . . . . . Retrieved Matter . | . . . . . . . . . . . . . . . . . . . . . . . . . . . . . Retrieved Components . | . . . . . . . . . . . . . . . . . . . . . . . . . . . . . Parts Scanalyzed 7 | . . 1 . . . . . . . . . . . . . . . . . . . . . . 6 . . . Part Schematics Acquired 7 | . . 1 . . . . . . . . . . . . . . . . . . . . . . 6 . . . Parts Damaged 1 | . . . . . . . . . . . . . . . . . . . . . . . . . 1 . . . Bothacking | -11 -10 -9 -9 -9 -8 -8 -7 -7 -7 -6 -6 -6 -6 -6 -5 -5 -5 -4 -4 -4 -4 -4 -4 -3 -3 -2 -1 -1 ------------ Run | Yrd Mat Mat Min Exi Min Mat Fac Low Dat Pro Fac Low Low Zio Pro Fac Ext Fac Was Fac Upp Upp War Pro Res Res Acc Com Used RIF Installer . | . . . . . . . . . . . . . . . . . . . . . . . . . . . . . Robots Hacked . | . . . . . . . . . . . . . . . . . . . . . . . . . . . . . Non-combat . | . . . . . . . . . . . . . . . . . . . . . . . . . . . . . Combat . | . . . . . . . . . . . . . . . . . . . . . . . . . . . . . Robot Hacks Applied . | . . . . . . . . . . . . . . . . . . . . . . . . . . . . . Relay Couplers Released . | . . . . . . . . . . . . . . . . . . . . . . . . . . . . . Fabnet Peak Effective % . | . . . . . . . . . . . . . . . . . . . . . . . . . . . . . Robots Rewired 1 | . . . . . . . . . . . . . 1 . . . . . . . . . . . . . . . Allies Hacked . | . . . . . . . . . . . . . . . . . . . . . . . . . . . . . Hacks Repelled . | . . . . . . . . . . . . . . . . . . . . . . . . . . . . . Allies | -11 -10 -9 -9 -9 -8 -8 -7 -7 -7 -6 -6 -6 -6 -6 -5 -5 -5 -4 -4 -4 -4 -4 -4 -3 -3 -2 -1 -1 -------- Run | Yrd Mat Mat Min Exi Min Mat Fac Low Dat Pro Fac Low Low Zio Pro Fac Ext Fac Was Fac Upp Upp War Pro Res Res Acc Com Total Allies 24 | . . . . . . . . . . . . . 1 . . . 3 . 20 . . . . . . . . . Largest Group 20 | . . . . . . . . . . . . . . . . . 3 . 20 20 . . . . . . . . Highest-Rated Group 706 | . . . . . . . . . . . . . . . . . 101 . 706 706 . . . . . . . . Highest-Rated Ally 46 | . . . . . . . . . . . . . . . . . 39 . 46 46 . . . . . . . . Total Orders . | . . . . . . . . . . . . . . . . . . . . . . . . . . . . . Ally Attacks 93 | . . . . . . . . . . . . . 1 . . . 21 . . 71 . . . . . . . . Total Damage 1643 | . . . . . . . . . . . . . 69 . . . 418 . . 1156 . . . . . . . . Kills 7 | . . . . . . . . . . . . . . . . . 2 . . 5 . . . . . . . . Allies Corrupted . | . . . . . . . . . . . . . . . . . . . . . . . . . . . . . Allies Melted . | . . . . . . . . . . . . . . . . . . . . . . . . . . . . . Intel | -11 -10 -9 -9 -9 -8 -8 -7 -7 -7 -6 -6 -6 -6 -6 -5 -5 -5 -4 -4 -4 -4 -4 -4 -3 -3 -2 -1 -1 ------- Run | Yrd Mat Mat Min Exi Min Mat Fac Low Dat Pro Fac Low Low Zio Pro Fac Ext Fac Was Fac Upp Upp War Pro Res Res Acc Com Robot Analysis Total . | . . . . . . . . . . . . . . . . . . . . . . . . . . . . . Derelict Logs Recovered 9 | . . . 2 . . . . . . 1 . 1 1 2 2 . . . . . . . . . . . . . Drone Launches . | . . . . . . . . . . . . . . . . . . . . . . . . . . . . . Drone Recoveries . | . . . . . . . . . . . . . . . . . . . . . . . . . . . . . Decoded 0b10 Intel 41 | . . . . . . . . . . . . . . . . . . . . . . . . . 19 8 7 7 Garrisons 3 | . . . . . . . . . . . . . . . . . . . . . . . . . 1 1 1 . Patrols 23 | . . . . . . . . . . . . . . . . . . . . . . . . . 13 4 5 1 Investigations 1 | . . . . . . . . . . . . . . . . . . . . . . . . . 1 . . . Reinforcements 1 | . . . . . . . . . . . . . . . . . . . . . . . . . . . . 1 Guards 13 | . . . . . . . . . . . . . . . . . . . . . . . . . 4 3 1 5 Exploration | -11 -10 -9 -9 -9 -8 -8 -7 -7 -7 -6 -6 -6 -6 -6 -5 -5 -5 -4 -4 -4 -4 -4 -4 -3 -3 -2 -1 -1 ------------- Run | Yrd Mat Mat Min Exi Min Mat Fac Low Dat Pro Fac Low Low Zio Pro Fac Ext Fac Was Fac Upp Upp War Pro Res Res Acc Com Turns Passed 6377 | 116 277 139 136 94 178 253 61 34 23 460 75 132 288 272 350 67 144 177 207 201 107 119 457 159 767 599 252 233 Spaces Moved 14740 | 73 272 293 165 255 367 449 206 106 82 1218 238 377 867 919 457 193 335 455 423 480 311 339 1222 491 1529 1472 738 408 Core 39 | 13 . . . . . . . . . . . . . . . . . 1 . . . . . . . . 8 17 Treads . | . . . . . . . . . . . . . . . . . . . . . . . . . . . . . Legs 25 | 25 . . . . . . . . . . . . . . . . . . . . . . . . . . . . Wheels 143 | 35 108 . . . . . . . . . . . . . . . . . . . . . . . . . . . Hover . | . . . . . . . . . . . . . . . . . . . . . . . . . . . . . Flight 14533 | . 164 293 165 255 367 449 206 106 82 1218 238 377 867 919 457 193 335 454 423 480 311 339 1222 491 1529 1472 730 391 Fastest Speed 24 | 50 37 37 37 37 34 28 28 28 28 28 28 28 28 28 28 26 26 26 28 28 31 31 26 26 27 24 25 40 Average Speed 29 | 97 56 37 37 37 36 28 28 28 28 30 28 28 28 28 28 26 26 28 28 29 31 33 27 26 27 26 27 41 Slowest Speed 250 | 120 200 37 37 37 37 29 28 28 28 104 103 103 28 28 103 26 28 250 105 31 31 37 37 27 29 111 100 150 Overloaded Moves . | . . . . . . . . . . . . . . . . . . . . . . . . . . . . . Propulsion Burnouts . | . . . . . . . . . . . . . . . . . . . . . . . . . . . . . Robots Hopped 92 | . 2 4 1 . 3 5 . . . 1 2 . 2 . . 1 6 11 3 1 . . 5 4 18 18 4 1 Cave-ins Triggered . | . . . . . . . . . . . . . . . . . . . . . . . . . . . . . Time Travels 1 | . . . . 1 . . . . . . . . . . . . . . . . . . . . . . . . Exploration Rate (%) 44 | 4 30 28 57 62 74 51 6 25 72 78 6 50 85 82 67 6 45 11 93 12 43 49 95 60 33 34 13 18 Regions Visited 28 Branch Regions 16 Pre-discovered Areas 4 | . . . 1 . . . . . 1 . . . . . 1 . . . . . . . 1 . . . . . Known Exits Taken 11 | . . . . . . . . . . . 1 . . . . 1 1 . . 1 1 1 1 1 1 1 1 . Unknown Exits Taken 15 | 1 1 1 1 1 1 1 1 1 1 1 . 1 1 1 1 . . . . . . . . . . . . . Scrap Searched 16 | . . . . . 1 . . . . 3 . 3 2 3 2 . . . . . . 1 . 1 . . . . Spaces Dug 37 | . . . . . . 3 . . . 8 . . 2 . . . 10 1 . 1 2 . . 2 1 . 5 2 Terrain Destroyed 126 | . . . . . . 23 . . . 77 . . 2 . . . 10 1 . 1 2 . . 2 1 . 5 2 Melee 29 | . . . . . . 3 . . . . . . 2 . . . 10 1 . 1 2 . . 2 1 . 5 2 Projectile . | . . . . . . . . . . . . . . . . . . . . . . . . . . . . . AOE 97 | . . . . . . 20 . . . 77 . . . . . . . . . . . . . . . . . . Terrain Rammed . | . . . . . . . . . . . . . . . . . . . . . . . . . . . . . Walls Destroyed . | . . . . . . . . . . . . . . . . . . . . . . . . . . . . . Machines Disabled . | . . . . . . . . . . . . . . . . . . . . . . . . . . . . . Actions | -11 -10 -9 -9 -9 -8 -8 -7 -7 -7 -6 -6 -6 -6 -6 -5 -5 -5 -4 -4 -4 -4 -4 -4 -3 -3 -2 -1 -1 --------- Run | Yrd Mat Mat Min Exi Min Mat Fac Low Dat Pro Fac Low Low Zio Pro Fac Ext Fac Was Fac Upp Upp War Pro Res Res Acc Com Total 16353 | 103 354 313 220 254 409 552 208 109 81 1273 241 400 898 932 678 201 367 488 482 538 315 344 1332 512 1853 1657 775 464 Wait 1288 | . 37 13 32 . 40 76 . 4 . 26 1 8 16 5 217 2 11 37 30 40 2 . 89 22 327 182 29 42 Move 14536 | 72 267 285 162 254 360 438 205 105 81 1215 233 376 862 918 456 190 322 434 416 477 310 338 1213 482 1493 1437 729 406 Hop 85 | . 2 3 1 . 3 5 . . . 1 2 . 2 . . 1 6 10 3 1 . . 3 4 17 16 4 1 Pick Up 30 | 7 4 1 3 . . 2 . . . 2 . 1 . 1 1 1 . . 1 1 . . . . 3 1 . 1 Fast Attach 93 | 6 2 3 2 . 2 5 1 . . 4 3 4 2 3 2 . . 2 6 5 . 1 16 . 6 12 2 4 Attach 22 | 1 1 . . . . 2 1 . . 3 1 1 2 . . 2 . 1 1 1 . 1 . . 2 . . 2 Detach 15 | 1 . . . . . . 1 . . . 1 3 1 1 . 1 . . . 2 . 1 . . 2 . . 1 Swap 20 | 2 3 1 1 . 1 4 . . . . . . . 1 . . . . 3 3 . 1 . . . . . . Drop 82 | . 11 3 3 . 3 7 . . . 2 . 5 1 3 2 . . 1 8 7 . 2 11 . 2 9 1 1 Fire 78 | 14 27 4 13 . . 10 . . . 10 . . . . . . . . . . . . . . . . . . Melee 82 | . . . . . . 3 . . . 9 . 2 12 . . 4 10 3 14 1 3 . . 4 1 . 10 6 Ram 1 | . . . . . . . . . . 1 . . . . . . . . . . . . . . . . . . Kick . | . . . . . . . . . . . . . . . . . . . . . . . . . . . . . Crush . | . . . . . . . . . . . . . . . . . . . . . . . . . . . . . Escape Stasis 18 | . . . . . . . . . . . . . . . . . 18 . . . . . . . . . . . Rewire . | . . . . . . . . . . . . . . . . . . . . . . . . . . . . . Trap 3 | . . . 3 . . . . . . . . . . . . . . . . . . . . . . . . . Miscellaneous . | . . . . . . . . . . . . . . . . . . . . . . . . . . . . . Route ------- -11/Scrapyard -10/Materials -9/Materials -9/Mines -9/Exiles -8/Mines -8/Materials -7/Factory -7/Lower Caves -7/Data Miner -6/Proximity Caves -6/Factory (discovered 2 exits: *Low x2) -6/Lower Caves -6/Lower Caves -6/Zion -5/Proximity Caves -5/Factory (discovered 2 exits: Fac / *Ext) -5/Extension (discovered 2 exits: *Fac x2) -4/Factory -4/Waste -4/Factory (discovered 5 exits: Res x4 / *Upp) -4/Upper Caves -4/Upper Caves (discovered 2 exits: *Res / *War) -4/Warlord -3/Proximity Caves -3/Research (discovered 4 exits: *Res x3 / *Tes) -2/Research (discovered 2 exits: *Acc / *Qua) -1/Access -1/Command History --------- Turn | Location | Event 5 | -11/Scrapyard | Discovered new exit (range 16) 117 | -11/Scrapyard | Entered Materials 347 | -10/Materials | Discovered new exit (range 5) 394 | -10/Materials | Entered another Materials area 394 | -9/Materials | Evolved 2 slots: Utility x2 528 | -9/Materials | Discovered new exit (range 14) 533 | -9/Materials | Entered Mines 585 | -9/Mines | Learned Materials emergency access door positions 585 | -9/Mines | Learned location of Storage (-9) 595 | -9/Mines | YI-UF0 nonchalantly dropped a Grenade Launcher on the ground 643 | -9/Mines | Found a hidden stash of uninstalled traps 667 | -9/Mines | Deemed a non-threat by the Exiles lab entrance 667 | -9/Mines | Discovered new exit (range 5) 669 | -9/Mines | Entered Exiles 678 | -9/Exiles | Met 8R-AWN 685 | -9/Exiles | Met EX-HEX 695 | -9/Exiles | Met EX-BIN 701 | -9/Exiles | Aligned with FarCom system 701 | -9/Exiles | Given EX-Vault access code 709 | -9/Exiles | Opened EX-Vault 711 | -9/Exiles | Found Prototype Device 711 | -9/Exiles | Identified Chronowheel 711 | -9/Exiles | Activated Chronowheel 711 | -9/Exiles | Spacetime reconverged on an earlier point 719 | -9/Exiles | Warned to stay clear of 0b10 Research branches 730 | -9/Exiles | Met EX-DEC 743 | -9/Exiles | Discovered new exit (range 14) 763 | -9/Exiles | Entered Mines 938 | -8/Mines | Discovered new exit (range 7) 941 | -8/Mines | Entered Materials 941 | -8/Materials | Evolved 2 slots: Propulsion x2 1055 | -8/Materials | Build established: Scout 1192 | -8/Materials | Discovered new exit (range 9) 1194 | -8/Materials | Entered Factory 1194 | -7/Factory | Evolved 2 slots: Power x1, Utility x1 1217 | -7/Factory | Discovered new exit (range 15) 1255 | -7/Factory | Entered Lower Caves 1271 | -7/Lower Caves | Attracted the attention of an 0b10 outpost 1287 | -7/Lower Caves | A Derelict revealed a hidden shortcut to meet someone special 1288 | -7/Lower Caves | Attracted the attention of an 0b10 checkpoint 1289 | -7/Lower Caves | Entered Data Miner 1289 | -7/Data Miner | Discovered new exit (range 7) 1294 | -7/Data Miner | Met Data Miner 1303 | -7/Data Miner | Learned location of Section 7 (-2) 1303 | -7/Data Miner | Acquired the access code to Warlord's prototype stash 1306 | -7/Data Miner | Received God Mode back door access code from Data Miner 1312 | -7/Data Miner | Entered Proximity Caves 1425 | -6/Proximity Caves | Learned Factory security intel 1555 | -6/Proximity Caves | Build established: Sprinter 1618 | -6/Proximity Caves | Lost 6 parts (1p2n2u1w) 1681 | -6/Proximity Caves | Attracted the attention of an 0b10 checkpoint 1771 | -6/Proximity Caves | Discovered new exit (range 5) 1772 | -6/Proximity Caves | Entered Factory 1772 | -6/Factory | Evolved 2 slots: Utility x2 1795 | -6/Factory | Identified exit to Lower Caves 1847 | -6/Factory | Entered Lower Caves 1959 | -6/Lower Caves | Discovered new exit (range 17) 1979 | -6/Lower Caves | Entered another Lower Caves area 1995 | -6/Lower Caves | Encountered a Warlord checkpoint 2054 | -6/Lower Caves | Learned 4 Factory zone layouts 2226 | -6/Lower Caves | Attracted the attention of an 0b10 checkpoint 2248 | -6/Lower Caves | Discovered new exit (range 6) 2258 | -6/Lower Caves | Spotted B-75 Beast 2267 | -6/Lower Caves | Entered Zion 2287 | -6/Zion | Learned location of 1 exit from Factory 2346 | -6/Zion | Rebuked by Imprinter 2363 | -6/Zion | Learned Factory trap positions 2382 | -6/Zion | Found Prototype Device 2382 | -6/Zion | Identified Phasing AFG 2529 | -6/Zion | Discovered new exit (range 18) 2535 | -6/Zion | Given A8's code to call for help 2539 | -6/Zion | Entered Proximity Caves 2557 | -5/Proximity Caves | Learned Factory terminal intel 2626 | -5/Proximity Caves | Build established: Hacker-Sprinter 2702 | -5/Proximity Caves | Received a Behemoth hack from an annoying Tinkerer 2886 | -5/Proximity Caves | Discovered new exit (range 5) 2889 | -5/Proximity Caves | Entered Factory 2889 | -5/Factory | Evolved 2 slots: Propulsion x1, Utility x1 2890 | -5/Factory | Identified exit to Extension 2891 | -5/Factory | Identified exit to Factory 2893 | -5/Factory | Loaded intel: 85 trap records 2894 | -5/Factory | Loaded intel: 27 terminal locations 2956 | -5/Factory | Entered Extension 3053 | -5/Extension | Rescued a captive Derelict 3055 | -5/Extension | Rescued a captive Derelict 3056 | -5/Extension | Rescued a captive Derelict 3060 | -5/Extension | Rescued a captive Derelict 3061 | -5/Extension | Rescued a captive Derelict 3068 | -5/Extension | Spotted B-75 Beast 3095 | -5/Extension | Spotted B-75 Beast 3100 | -5/Extension | Entered Factory 3100 | -4/Factory | Evolved 2 slots: Utility x2 3130 | -4/Factory | Lost 3 parts (1p1n1u) 3277 | -4/Factory | Sucked down chute 3277 | -4/Factory | Entered Waste 3278 | -4/Waste | Joined by Warlord forces that had cleared the area 3361 | -4/Waste | Discovered new exit (range 21) 3484 | -4/Waste | Entered Factory 3484 | -4/Factory | Accompanied by 20 allies 3515 | -4/Factory | Identified exit to Research 3675 | -4/Factory | Discovered new exit (range 5) 3677 | -4/Factory | Identified exit to Upper Caves 3685 | -4/Factory | Entered Upper Caves 3695 | -4/Upper Caves | Lost 3 allies 3782 | -4/Upper Caves | Discovered new exit (range 14) 3792 | -4/Upper Caves | Identified exit to Upper Caves 3792 | -4/Upper Caves | Entered another Upper Caves area 3813 | -4/Upper Caves | Discovered exit to Research (range 15) 3840 | -4/Upper Caves | Spotted B-86 Titan 3863 | -4/Upper Caves | Attracted the attention of an 0b10 outpost 3902 | -4/Upper Caves | Lost 4 parts (1p2n1w) 3908 | -4/Upper Caves | Discovered new exit (range 10) 3911 | -4/Upper Caves | Identified exit to Warlord 3911 | -4/Upper Caves | Entered Warlord 3924 | -4/Warlord | System corruption cleaned by Quarantine Array 3954 | -4/Warlord | Received a Watcher feed algorithm from an ecstatic Tinkerer 3973 | -4/Warlord | Met Warlord 3976 | -4/Warlord | Opened Warlord's prototype stash 3984 | -4/Warlord | Found Prototype Hackware 3984 | -4/Warlord | Identified System Mapper 3987 | -4/Warlord | Warlord's base attacked by MAIN.C 3987 | -4/Warlord | Found Prototype Device 3987 | -4/Warlord | Identified Exp. Phase Shifter 3996 | -4/Warlord | Found Prototype Reactor 3996 | -4/Warlord | Identified Vortex Chain Reactor 4049 | -4/Warlord | Found Prototype Piercing Weapon 4049 | -4/Warlord | Identified Vortex Lance 4051 | -4/Warlord | Found Vortex Lance 4100 | -4/Warlord | Learned Factory recycling unit intel 4100 | -4/Warlord | Learned Factory garrison access intel 4100 | -4/Warlord | Learned Armory terminal intel 4100 | -4/Warlord | Learned Armory fabricator intel 4100 | -4/Warlord | Learned 4 Testing zone layouts 4100 | -4/Warlord | Learned 4 Armory zone layouts 4100 | -4/Warlord | Learned 4 Command zone layouts 4100 | -4/Warlord | Learned Research emergency access door positions 4137 | -4/Warlord | Found Prototype Device 4137 | -4/Warlord | Identified Exp. Focal Shield 4144 | -4/Warlord | Found Prototype Processor 4144 | -4/Warlord | Identified Exp. Armor Integrity Analyzer 4217 | -4/Warlord | Found Prototype Special Weapon 4217 | -4/Warlord | Identified RU-N14's Throwing Claymores v3 4232 | -4/Warlord | Opened side exit 4337 | -4/Warlord | Warlord forces counterattacked 4365 | -4/Warlord | Discovered new exit (range 12) 4367 | -4/Warlord | Identified exit to Proximity Caves 4368 | -4/Warlord | Entered Proximity Caves 4371 | -3/Proximity Caves | Spotter reported a threat 4376 | -3/Proximity Caves | Spotter reported a threat 4424 | -3/Proximity Caves | Spotter reported a threat 4485 | -3/Proximity Caves | Attracted the attention of an 0b10 outpost 4487 | -3/Proximity Caves | Attracted the attention of an 0b10 checkpoint 4506 | -3/Proximity Caves | Attacked by a faux Warlord 4522 | -3/Proximity Caves | Discovered exit to Research (range 15) 4527 | -3/Proximity Caves | Entered Research 4527 | -3/Research | Evolved 2 slots: Propulsion x1, Utility x1 4777 | -3/Research | Search patrols dispatched 5051 | -3/Research | Found Prototype Processor 5051 | -3/Research | Identified Exp. Melee Analysis Suite 5160 | -3/Research | Discovered new exit (range 5) 5161 | -3/Research | Identified exit to Testing 5218 | -3/Research | Identified exit to Research 5277 | -3/Research | Search patrols dispatched 5294 | -3/Research | Entered another Research area 5294 | -2/Research | Warlord forces began assault on 0b10 5294 | -2/Research | Evolved 2 slots: Power x1, Utility x1 5295 | -2/Research | Identified exit to Quarantine 5404 | -2/Research | Research machine network offline 5481 | -2/Research | Spotted B-90 Cyclops 5546 | -2/Research | Met up with Warlord 5550 | -2/Research | Discovered new exit (range 13) 5553 | -2/Research | Identified exit to Access 5810 | -2/Research | Spotted Striker 5827 | -2/Research | Spotted Striker 5893 | -2/Research | Entered Access 5893 | -1/Access | Evolved 2 slots: Utility x2 6129 | -1/Access | Spotted B-99 Colossus 6131 | -1/Access | Spotted B-99 Colossus 6139 | -1/Access | Discovered new exit (range 3) 6142 | -1/Access | Identified exit to Command 6145 | -1/Access | Entered Command 6169 | -1/Command | Lost 13 parts (2p6n5u) 6354 | -1/Command | Core integrity fell below 50% 6375 | -1/Command | Core integrity fell below 20% 6378 | -1/Command | Destroyed by S-43 Plague with Heavy Machine Gun Last Messages --------------- 06367_ G-73 Enforcer unfolds itself. 06367_ I-47 Archangel springs to life. 06367_ I-47 Archangel sends out distress signal. 06367_ D-83 Annihilator springs to life. 06367_ X-87 Electro springs to life. 06367_ C-30 ARC springs to life. 06367_ C-30 ARC bursts open, deploying its payload. 06367_ S-43 Plague unfolds itself. 06367_ D-83 Annihilator springs to life. 06367_ X-87 Electro springs to life. 06367_ I-47 Archangel springs to life. 06368_ The unstable cave ceiling collapses. 06370_ Field Propulsion Array destroyed. 06371_ P-80 Master springs to life. 06372_ Mak. ECM Suite destroyed. 06372_ P-80 Master springs to life. 06375_ H-88 Terminator springs to life. 06376_ Slug penetrates Wall. 06377_ Machine Analyzer destroyed. Map ----- +----------------------------------------------------+ | ?????????????????????????????????????????????????? | | ?????????????????????????????????????######??????? | | ?????????????????????????????????????# ??????? | | ?????????????????????????????????????# ??????? | | ?????????????????????????????????????# ?"????? | | ?????????????????????????????????????# ""????? | | ?????????????????????????????????????# ""##### | | ?????????????????????????????????????# ""# | | ?????????????????????????????????????# ""# | | ?????????????????????????????????????# T"# | | ???????######????######??????????????# ""# | | ???????# " ??????hhhh???????????????#= ""# | | ???????# "%"?????# h #c?????????????# ""# | | ???????? "%"??lb??hhhh?c?????????????# ""# | | ???????? "%i?l?bb?hhhh?cs????????????# "# | | ???????? "%i?llbb?hhh ???c???????????# # | | ???????? "si?llbb?hh h?cs????????????# # | | ????????#d"#???b??# h#??s????????????# #! | | ????????#x #?#l???#hh#???????????????# # | | ????????#xp#?#lb??# #??s????????????######+####+# | | ????????#x #?#bb??# #??s???????#####?# | | ???????##x #?# ???# #??????????# #?# | | #?#???## #?#l???# #??s???????# w #?# ### #### | | #?#?### ###bl??# #??????????# #?# #?# # | | #?#?# s #;l###;;###++######## #### #?# + | | #?#??# # ssss l c @ Y ; #?# # | | #?#??# s pss e / ; #?# # | | #?#?## e e s / ; #?# # | | #?#?# g Y / ; #?# # | | #?#?### C p####;###++######;# #### #?# # | | #?#???### C###pp#?# #?????????## #?# #?# #### | | #?#?????# #?# #?# #???g??????# w #?# #?# #??? | | #?#?????# C#?# p#?# g#??????????# #?# #?# #??? | | #?#?????#Ce#?# p#?#gg#??????????#####?# ### #??? | | #?#?????# C#?#pp#?# #???????????????? ! ## #### | | #?#?????# #?# #?#gg#??gg???????????? | | #?#????## ###pp#?#gg#??g?????????????/ ! | | #?#????# #p pp?g gg?g?????????????? ######## | | #?#????# # pp ?gggg????????????????# ##??????? | | #?#????# # pp? g ?g??????????????? #???????? | | #?#????# # p#g gg????????????????? #???????? | | #?#????# # #ggg ????????????????? #???????? | | #?#????# # # ?????????????????? ###?????? | | #?#????########+###/#?????????????????? #?##### | | #?#??????# #??# ??? ??????????????????? #?# | | #?#??????# #??# ??? ??????????????????? #?# | | #?#??????# #### ??????????????????????? #?# | | ?????????????????????????????????????????????????? | | ?????????????????????????????????????????????????? | | ?????????????????????????????????????????????????? | +----------------------------------------------------+ Best States ------------- Heat Dissipation 81 Energy Generation 39 Energy Capacity 480 Matter Stores 300 Matter Capacity 300 Sight Range 22 Robot Scan Range 14 Terrain Scan Density 110 ECM Strength 1 Jamming Range 14 Cloak Strength 4 Corruption Block 20 Armor Coverage 150 Resistance: KI 30 Evasion (%) 74 Armor Integrity Analysis 50 Salvage Targeting 1 Offensive Hacking 30 Defensive Hacking 35 Item Schematics ----------------- Flight Unit | -9/Materials | Scanalyzed Combat Drone Bay | -7/Data Miner | Free Lgt. Regenerative Plating | -7/Data Miner | Free Exp. Targeting Computer | -7/Data Miner | Free Cld. Aerolev Unit | -7/Data Miner | Free Imp. Heavy Laser | -7/Data Miner | Free Antigrav System | -7/Data Miner | Free Imp. Focal Shield | -7/Data Miner | Free Tesla Rifle | -7/Data Miner | Free Adv. Cooling System | -7/Data Miner | Free Adv. Transmission Jammer | -7/Data Miner | Free Remote Datajack | -3/Research | Scanalyzed Impulse Thruster Array | -3/Research | Scanalyzed Mak. ECM Suite | -3/Research | Scanalyzed Missile Launcher | -3/Research | Scanalyzed VTOL Module | -3/Research | Scanalyzed Railgun | -3/Research | Scanalyzed Robot Schematics ------------------ H-66 Slayer | -7/Data Miner | Free I-36 Angel | -7/Data Miner | Free O-24 Administrator | -7/Data Miner | Free L-41 Fighter | -7/Data Miner | Free M-22 Extractor | -7/Data Miner | Free R-10 Processor | -7/Data Miner | Free G-50 Soldier | -7/Data Miner | Free Fabricated ------------ Nothing Alien Tech Used ----------------- None Achievements -------------- Adventurer All-out Warlord GoHome() Knowing Is Half The Battle Reappropriation root@ Challenges ------------ None Game ------ Seed ZioniteNuclearSword Manual? 0 Play Time 02:00:06 Cumulative 41.5 hours Start 2024.08.19 @ 18:01:50 End 2024.08.19 @ 20:09:10 Sessions 1 Manual Loads 0 Difficulty Rogue Special Mode None Game No. 53 Rogue 53 Adventurer 0 Explorer 0 Win Type - Total 0 Types 0/0/0/0/0/0/0/0/0 Lore% 17 Gallery% 43 Achievement% 35 Wizard Run 0 Options --------- Layout 1 ASCII 0 Keyboard 0 Movement Numpad Keybinds 0 Fullscreen 1 Font 32/SmallcapsGlow Map View 50x35 Zoom Use 0% Tactical HUD 1 Map Filters NONE Filters NONE Steam 1 RUN: e196a234-92dd-49dc-b9d7-965d4f85d874